[Event "Early-Titled-Tuesday-Blitz-February-13-2024"]
[Site "Chess.com"]
[Date "2024.02.13"]
[Round "4"]
[White "amylazy"]
[Black "lucasran"]
[Result "1-0"]
[WhiteElo "2448"]
[BlackElo "2681"]
[TimeControl "180+1"]
[EndTime "8:44:11 PST"]
[Termination "amylazy won by resignation"]

1. d4 {[%clk 0:02:59.4]} 1... Nf6 {[%clk 0:02:59.4]} 2. Nf3 {[%clk 0:02:59.7]}
2... e6 {[%clk 0:02:59.7]} 3. e3 {[%clk 0:02:59]} 3... b6 {[%clk 0:02:59.5]} 4.
Bd3 {[%clk 0:02:59.5]} 4... Bb7 {[%clk 0:03:00.2]} 5. O-O {[%clk 0:02:59.9]}
5... c5 {[%clk 0:03:00.4]} 6. c4 {[%clk 0:03:00.3]} 6... Be7 {[%clk 0:02:57.9]}
7. Nc3 {[%clk 0:03:00.4]} 7... cxd4 {[%clk 0:02:58.3]} 8. exd4 {[%clk
0:03:00.4]} 8... d5 {[%clk 0:02:53.5]} 9. cxd5 {[%clk 0:03:00.5]} 9... Nxd5
{[%clk 0:02:54.4]} 10. Ne5 {[%clk 0:03:01]} 10... O-O {[%clk 0:02:48.4]} 11. Qh5
{[%clk 0:02:59.7]} 11... f5 {[%clk 0:02:38.7]} 12. Re1 {[%clk 0:02:47.6]} 12...
Nd7 {[%clk 0:02:10.3]} 13. Nxd5 {[%clk 0:02:39.8]} 13... Bxd5 {[%clk 0:02:09.6]}
14. Bf4 {[%clk 0:02:36.3]} 14... Nf6 {[%clk 0:02:06.5]} 15. Qh3 {[%clk
0:02:32.7]} 15... Rc8 {[%clk 0:02:02.1]} 16. Rad1 {[%clk 0:02:32.4]} 16... Re8
{[%clk 0:02:02]} 17. Bb5 {[%clk 0:02:31.9]} 17... Rf8 {[%clk 0:02:01.1]} 18. Bg5
{[%clk 0:02:27.6]} 18... Rc7 {[%clk 0:01:48.4]} 19. Nd3 {[%clk 0:02:16]} 19...
Bxa2 {[%clk 0:01:03.2]} 20. Nf4 {[%clk 0:02:08.6]} 20... Qd6 {[%clk 0:01:01.4]}
21. d5 {[%clk 0:01:39]} 21... Bxd5 {[%clk 0:00:19.4]} 22. Nxe6 {[%clk
0:01:32.9]} 22... Qxe6 {[%clk 0:00:14.1]} 23. Rxe6 {[%clk 0:01:32.2]} 23... Bxe6
{[%clk 0:00:15]} 24. Qe3 {[%clk 0:01:15.2]} 24... Bf7 {[%clk 0:00:09.9]} 25. h3
{[%clk 0:01:14.1]} 25... Nd5 {[%clk 0:00:06.1]} 26. Qg3 {[%clk 0:00:46.3]} 26...
Bxg5 {[%clk 0:00:06.2]} 27. Qxg5 {[%clk 0:00:45.7]} 27... Nf6 {[%clk 0:00:06.4]}
28. Qxf5 {[%clk 0:00:39]} 28... Rc5 {[%clk 0:00:06.3]} 29. Qd3 {[%clk
0:00:36.5]} 29... Rd5 {[%clk 0:00:06.4]} 30. Qe2 {[%clk 0:00:35.9]} 30... Rxd1+
{[%clk 0:00:03.1]} 31. Qxd1 {[%clk 0:00:36.8]} 31... Ne4 {[%clk 0:00:02.6]} 32.
Qd3 {[%clk 0:00:33.3]} 32... Nf6 {[%clk 0:00:01.2]} 33. Qa3 {[%clk 0:00:24.7]}
33... h6 {[%clk 0:00:01.1]} 34. Qxa7 {[%clk 0:00:23.9]} 34... Kh8 {[%clk
0:00:02]} 35. Qxb6 {[%clk 0:00:23.5]} 35... Kg8 {[%clk 0:00:02.8]} 36. Qd4
{[%clk 0:00:21.7]} 36... Rb8 {[%clk 0:00:02.1]} 37. Bd3 {[%clk 0:00:20.1]} 37...
Kh8 {[%clk 0:00:02.7]} 38. b4 {[%clk 0:00:20.1]} 38... Rb7 {[%clk 0:00:02.9]}
39. b5 {[%clk 0:00:20.1]} 39... Rd7 {[%clk 0:00:02.8]} 40. Qe3 {[%clk 0:00:20]}
40... Ne8 {[%clk 0:00:02.7]} 41. b6 {[%clk 0:00:19]} 41... Rb7 {[%clk
0:00:02.9]} 42. Be4 {[%clk 0:00:18.7]} 42... Rb8 {[%clk 0:00:02.7]} 43. b7
{[%clk 0:00:18.8]} 43... Nd6 {[%clk 0:00:03.4]} 44. Qf4 {[%clk 0:00:19.2]} 44...
Nxe4 {[%clk 0:00:01.9]} 45. Qxb8+ {[%clk 0:00:19.1]} 45... Kh7 {[%clk
0:00:02.4]} 46. Qf4 {[%clk 0:00:19.6]} 46... Nf6 {[%clk 0:00:02]} 47. Qf5+
{[%clk 0:00:19.6]} 47... Bg6 {[%clk 0:00:01.8]} 48. Qxg6+ {[%clk 0:00:19.9]}
48... Kxg6 {[%clk 0:00:02.3]} 49. b8=Q {[%clk 0:00:20.7]} 49... Kf7 {[%clk
0:00:02.8]} 50. Qc7+ {[%clk 0:00:20.5]} 50... Kg6 {[%clk 0:00:03.7]} 51. g4
{[%clk 0:00:20.1]} 51... Kh7 {[%clk 0:00:04.6]} 52. f4 {[%clk 0:00:19.8]} 52...
Kg6 {[%clk 0:00:04.2]} 53. Qd6 {[%clk 0:00:19.5]} 53... Kh7 {[%clk 0:00:04.3]}
54. g5 {[%clk 0:00:20]} 54... hxg5 {[%clk 0:00:04.1]} 55. fxg5 {[%clk
0:00:20.9]} 55... Nh5 {[%clk 0:00:04.5]} 56. Kg2 {[%clk 0:00:18.5]} 56... g6
{[%clk 0:00:03.6]} 57. Kf3 {[%clk 0:00:18.6]} 57... Ng7 {[%clk 0:00:04.2]} 58.
Kg4 {[%clk 0:00:19.1]} 58... Nf5 {[%clk 0:00:03.3]} 59. Qd7+ {[%clk 0:00:19.3]}
59... Ng7 {[%clk 0:00:03.2]} 60. Qf7 {[%clk 0:00:18.9]} 60... Kh8 {[%clk
0:00:02]} 61. Qxg6 {[%clk 0:00:18.5]} 61... Kg8 {[%clk 0:00:02.5]} 62. h4 {[%clk
0:00:18.3]} 62... Kh8 {[%clk 0:00:02.4]} 63. h5 {[%clk 0:00:18.6]} 63... Ne6
{[%clk 0:00:01.7]} 64. Qxe6 {[%clk 0:00:17.7]} 1-0

[Event "Early-Titled-Tuesday-Blitz-February-13-2024"]
[Site "Chess.com"]
[Date "2024.02.13"]
[Round "4"]
[White "KarolKacprzak"]
[Black "DenLaz"]
[Result "0-1"]
[WhiteElo "2730"]
[BlackElo "3043"]
[TimeControl "180+1"]
[EndTime "8:44:12 PST"]
[Termination "DenLaz won by resignation"]

1. d4 {[%clk 0:02:55.9]} 1... f5 {[%clk 0:02:59.6]} 2. Nf3 {[%clk 0:02:53.7]}
2... Nf6 {[%clk 0:03:00.2]} 3. g3 {[%clk 0:02:53.3]} 3... g6 {[%clk 0:03:00.9]}
4. Bg2 {[%clk 0:02:53.9]} 4... Bg7 {[%clk 0:03:01.6]} 5. O-O {[%clk 0:02:54.8]}
5... O-O {[%clk 0:03:02.3]} 6. c4 {[%clk 0:02:53.2]} 6... d6 {[%clk 0:03:02.9]}
7. Nc3 {[%clk 0:02:53.8]} 7... c6 {[%clk 0:03:03.4]} 8. Re1 {[%clk 0:02:49.6]}
8... Na6 {[%clk 0:03:02.7]} 9. e4 {[%clk 0:02:44.7]} 9... fxe4 {[%clk
0:02:58.4]} 10. Nxe4 {[%clk 0:02:45.6]} 10... Nxe4 {[%clk 0:02:58.9]} 11. Rxe4
{[%clk 0:02:46.5]} 11... Bf5 {[%clk 0:02:59.1]} 12. Re1 {[%clk 0:02:42.9]} 12...
e5 {[%clk 0:02:58.3]} 13. dxe5 {[%clk 0:02:36]} 13... dxe5 {[%clk 0:02:57.7]}
14. Qxd8 {[%clk 0:02:36.9]} 14... Raxd8 {[%clk 0:02:57.5]} 15. Bg5 {[%clk
0:02:37.3]} 15... Rde8 {[%clk 0:02:53.9]} 16. Be3 {[%clk 0:02:06.2]} 16... Nb4
{[%clk 0:02:49.9]} 17. Bc5 {[%clk 0:02:04.4]} 17... Nc2 {[%clk 0:02:49.2]} 18.
Bxf8 {[%clk 0:02:04]} 18... Kxf8 {[%clk 0:02:41.9]} 19. Ng5 {[%clk 0:01:55.4]}
19... h6 {[%clk 0:02:37.6]} 20. Ne4 {[%clk 0:01:53.1]} 20... Nxa1 {[%clk
0:02:29.8]} 21. Rxa1 {[%clk 0:01:51.5]} 21... Rd8 {[%clk 0:02:30.5]} 22. Re1
{[%clk 0:01:34.8]} 22... Rd4 {[%clk 0:02:26.4]} 23. b3 {[%clk 0:01:31.8]} 23...
Ke7 {[%clk 0:02:26.1]} 24. Bf3 {[%clk 0:01:24.6]} 24... a5 {[%clk 0:02:12.8]}
25. Kg2 {[%clk 0:01:23.8]} 25... Kd8 {[%clk 0:02:05.4]} 26. h3 {[%clk
0:01:00.1]} 26... Bf8 {[%clk 0:02:04.2]} 27. g4 {[%clk 0:00:54.6]} 27... Be6
{[%clk 0:02:03.1]} 28. Ng3 {[%clk 0:00:55]} 28... Bd6 {[%clk 0:01:53.9]} 29. Be4
{[%clk 0:00:52.7]} 29... Bf7 {[%clk 0:01:54.1]} 30. Re2 {[%clk 0:00:51.6]} 30...
Be7 {[%clk 0:01:48.6]} 31. Bf3 {[%clk 0:00:50.3]} 31... Bf6 {[%clk 0:01:19.6]}
32. Ne4 {[%clk 0:00:49.2]} 32... Ke7 {[%clk 0:01:19.8]} 33. Nc5 {[%clk
0:00:48.5]} 33... b6 {[%clk 0:01:13.3]} 34. Ne4 {[%clk 0:00:49.1]} 34... Be8
{[%clk 0:01:11.2]} 35. Rd2 {[%clk 0:00:44.1]} 35... Bg5 {[%clk 0:00:58.6]} 36.
Re2 {[%clk 0:00:43.5]} 36... Bf4 {[%clk 0:00:56.6]} 37. h4 {[%clk 0:00:32.9]}
37... Bd7 {[%clk 0:00:51.1]} 38. g5 {[%clk 0:00:20.8]} 38... hxg5 {[%clk
0:00:48.2]} 39. Nxg5 {[%clk 0:00:21.7]} 39... Kf6 {[%clk 0:00:29.3]} 40. Ne4+
{[%clk 0:00:22.1]} 40... Ke7 {[%clk 0:00:29.6]} 41. h5 {[%clk 0:00:21.6]} 41...
gxh5 {[%clk 0:00:28.4]} 42. Bxh5 {[%clk 0:00:22.5]} 42... a4 {[%clk 0:00:27.4]}
43. Bf3 {[%clk 0:00:20.5]} 43... a3 {[%clk 0:00:26.8]} 44. Rc2 {[%clk
0:00:16.5]} 44... Bf5 {[%clk 0:00:25.5]} 45. Re2 {[%clk 0:00:17.1]} 45... Kd7
{[%clk 0:00:22.9]} 46. Kg1 {[%clk 0:00:10.7]} 46... Kc7 {[%clk 0:00:22.9]} 47.
Kg2 {[%clk 0:00:11.2]} 47... Rd1 {[%clk 0:00:19.4]} 48. Rc2 {[%clk 0:00:10.1]}
48... Rb1 {[%clk 0:00:18.9]} 49. c5 {[%clk 0:00:07.5]} 49... Rb2 {[%clk
0:00:16.3]} 50. cxb6+ {[%clk 0:00:07.3]} 50... Kxb6 {[%clk 0:00:17.2]} 51. Rc4
{[%clk 0:00:07.6]} 51... Bxe4 {[%clk 0:00:09.3]} 52. Bxe4 {[%clk 0:00:08.5]}
52... Rxa2 {[%clk 0:00:09.6]} 53. Ra4 {[%clk 0:00:08.2]} 53... Bc1 {[%clk
0:00:07.1]} 54. b4 {[%clk 0:00:05.1]} 54... Rd2 {[%clk 0:00:06.8]} 55. Ra8
{[%clk 0:00:04.6]} 55... a2 {[%clk 0:00:04.9]} 56. Bf5 {[%clk 0:00:03.6]} 56...
Kb7 {[%clk 0:00:04.5]} 57. Ra4 {[%clk 0:00:03.1]} 57... Rb2 {[%clk 0:00:02.2]}
58. Be6 {[%clk 0:00:03.4]} 58... Rxb4 {[%clk 0:00:02.8]} 59. Rxa2 {[%clk
0:00:03.5]} 59... Bf4 {[%clk 0:00:02.6]} 60. Re2 {[%clk 0:00:04]} 60... Kc7
{[%clk 0:00:03.2]} 61. Rc2 {[%clk 0:00:04]} 61... Kd6 {[%clk 0:00:03.6]} 62. Bg4
{[%clk 0:00:04.6]} 62... c5 {[%clk 0:00:04.1]} 63. Ra2 {[%clk 0:00:04.7]} 63...
c4 {[%clk 0:00:04.3]} 64. Bf5 {[%clk 0:00:05.3]} 64... c3 {[%clk 0:00:04.2]} 65.
Kf3 {[%clk 0:00:05.4]} 65... Bd2 {[%clk 0:00:03.9]} 66. Ra8 {[%clk 0:00:05.1]}
66... Rf4+ {[%clk 0:00:04.2]} 67. Ke2 {[%clk 0:00:05]} 67... Rxf5 {[%clk
0:00:04.7]} 0-1

[Event "Early-Titled-Tuesday-Blitz-February-13-2024"]
[Site "Chess.com"]
[Date "2024.02.13"]
[Round "4"]
[White "Grandelicious"]
[Black "Lady_Nika"]
[Result "1/2-1/2"]
[WhiteElo "2875"]
[BlackElo "2610"]
[TimeControl "180+1"]
[EndTime "8:44:14 PST"]
[Termination "Game drawn by stalemate"]

1. e4 {[%clk 0:03:00.9]} 1... e6 {[%clk 0:02:58.9]} 2. d4 {[%clk 0:02:59.8]}
2... d5 {[%clk 0:02:59.1]} 3. exd5 {[%clk 0:03:00.7]} 3... exd5 {[%clk
0:02:58.8]} 4. h3 {[%clk 0:03:01.6]} 4... Nf6 {[%clk 0:02:59.5]} 5. Nf3 {[%clk
0:03:01.8]} 5... Bd6 {[%clk 0:02:59.7]} 6. c4 {[%clk 0:02:58.2]} 6... c6 {[%clk
0:02:59.6]} 7. Bd3 {[%clk 0:02:55.9]} 7... O-O {[%clk 0:02:59.6]} 8. O-O {[%clk
0:02:56.2]} 8... Be6 {[%clk 0:02:56.6]} 9. c5 {[%clk 0:02:52.6]} 9... Bc7 {[%clk
0:02:54.9]} 10. Nc3 {[%clk 0:02:53.4]} 10... Re8 {[%clk 0:02:53.6]} 11. Re1
{[%clk 0:02:45.5]} 11... Nbd7 {[%clk 0:02:53.1]} 12. Be3 {[%clk 0:02:39.5]}
12... b6 {[%clk 0:02:53]} 13. b4 {[%clk 0:02:39.6]} 13... a5 {[%clk 0:02:53]}
14. b5 {[%clk 0:02:32]} 14... cxb5 {[%clk 0:02:36.9]} 15. Bxb5 {[%clk
0:02:26.5]} 15... bxc5 {[%clk 0:02:35.5]} 16. dxc5 {[%clk 0:02:27.4]} 16... Rb8
{[%clk 0:02:28.9]} 17. Nd4 {[%clk 0:02:22.5]} 17... Nxc5 {[%clk 0:02:17]} 18.
Bxe8 {[%clk 0:02:19.8]} 18... Qxe8 {[%clk 0:01:30.6]} 19. Nxe6 {[%clk 0:02:18]}
19... Nxe6 {[%clk 0:01:30.2]} 20. Nxd5 {[%clk 0:02:17.9]} 20... Be5 {[%clk
0:01:23.5]} 21. Nxf6+ {[%clk 0:02:11.8]} 21... Bxf6 {[%clk 0:01:23]} 22. Rb1
{[%clk 0:02:12.5]} 22... Rd8 {[%clk 0:01:22.3]} 23. Qb3 {[%clk 0:02:06.8]} 23...
Qc6 {[%clk 0:01:11.5]} 24. Qb5 {[%clk 0:02:03.3]} 24... Qc2 {[%clk 0:01:07.2]}
25. Qxa5 {[%clk 0:02:02]} 25... Bc3 {[%clk 0:01:06]} 26. Qxd8+ {[%clk
0:01:01.7]} 26... Nxd8 {[%clk 0:01:04.7]} 27. Bd2 {[%clk 0:01:02.5]} 27... Kf8
{[%clk 0:00:40.9]} 28. Bxc3 {[%clk 0:00:54.6]} 28... Qxc3 {[%clk 0:00:40.7]} 29.
Rec1 {[%clk 0:00:50.4]} 29... Qa5 {[%clk 0:00:35.4]} 30. Rc4 {[%clk 0:00:33.4]}
30... Ke7 {[%clk 0:00:34.9]} 31. a4 {[%clk 0:00:33.5]} 31... Ne6 {[%clk
0:00:30.9]} 32. g3 {[%clk 0:00:33.5]} 32... Qd5 {[%clk 0:00:23.9]} 33. Rc3
{[%clk 0:00:29.2]} 33... Nd4 {[%clk 0:00:21.7]} 34. Re3+ {[%clk 0:00:29.5]}
34... Kd6 {[%clk 0:00:20.7]} 35. Rb2 {[%clk 0:00:13.4]} 35... Nf3+ {[%clk
0:00:20.5]} 36. Kf1 {[%clk 0:00:13.7]} 36... Qd1+ {[%clk 0:00:17.3]} 37. Kg2
{[%clk 0:00:14]} 37... Ne1+ {[%clk 0:00:16.4]} 38. Rxe1 {[%clk 0:00:12.5]} 38...
Qxe1 {[%clk 0:00:16.2]} 39. Rb3 {[%clk 0:00:10.2]} 39... Qe4+ {[%clk 0:00:16]}
40. Kg1 {[%clk 0:00:10.5]} 40... Qxa4 {[%clk 0:00:15.8]} 41. Re3 {[%clk
0:00:10.8]} 41... Qd1+ {[%clk 0:00:15.7]} 42. Kg2 {[%clk 0:00:10.8]} 42... f5
{[%clk 0:00:15.4]} 43. h4 {[%clk 0:00:11.3]} 43... h6 {[%clk 0:00:14.7]} 44. Ra3
{[%clk 0:00:10.9]} 44... g5 {[%clk 0:00:14.6]} 45. Ra6+ {[%clk 0:00:09.6]} 45...
Ke5 {[%clk 0:00:14.9]} 46. Rxh6 {[%clk 0:00:07.3]} 46... gxh4 {[%clk 0:00:15.2]}
47. Rxh4 {[%clk 0:00:07.3]} 47... Qd5+ {[%clk 0:00:15.2]} 48. Kg1 {[%clk
0:00:07.4]} 48... Qg8 {[%clk 0:00:14.3]} 49. Rf4 {[%clk 0:00:08]} 49... Qa8
{[%clk 0:00:12.7]} 50. Kh2 {[%clk 0:00:07.4]} 50... Qb7 {[%clk 0:00:12.7]} 51.
Kg1 {[%clk 0:00:07.6]} 51... Qc6 {[%clk 0:00:12.8]} 52. Kh2 {[%clk 0:00:08.2]}
52... Qd5 {[%clk 0:00:13]} 53. Kg1 {[%clk 0:00:08.9]} 53... Qg8 {[%clk
0:00:13.2]} 54. Kg2 {[%clk 0:00:09.2]} 54... Qg5 {[%clk 0:00:13.2]} 55. Kg1
{[%clk 0:00:09.8]} 55... Qh6 {[%clk 0:00:09.7]} 56. Kg2 {[%clk 0:00:10.3]} 56...
Qg6 {[%clk 0:00:09.7]} 57. Kg1 {[%clk 0:00:10.8]} 57... Qh6 {[%clk 0:00:09.4]}
58. Kg2 {[%clk 0:00:11.4]} 58... Qxf4 {[%clk 0:00:04.5]} 59. gxf4+ {[%clk
0:00:11.5]} 59... Kxf4 {[%clk 0:00:05.2]} 60. f3 {[%clk 0:00:08.7]} 60... Kg5
{[%clk 0:00:05.1]} 61. f4+ {[%clk 0:00:09.6]} 61... Kxf4 {[%clk 0:00:05.2]} 62.
Kf2 {[%clk 0:00:10.5]} 62... Kg4 {[%clk 0:00:05.6]} 63. Kg2 {[%clk 0:00:11.1]}
63... f4 {[%clk 0:00:06]} 64. Kf2 {[%clk 0:00:11.9]} 64... Kf5 {[%clk
0:00:06.7]} 65. Kf3 {[%clk 0:00:12.3]} 65... Kg5 {[%clk 0:00:07.3]} 66. Kf2
{[%clk 0:00:12.8]} 66... Kg4 {[%clk 0:00:08.2]} 67. Kg2 {[%clk 0:00:13.5]} 67...
f3+ {[%clk 0:00:09.1]} 68. Kf2 {[%clk 0:00:14.3]} 68... Kf4 {[%clk 0:00:09.8]}
69. Kf1 {[%clk 0:00:14.7]} 69... Kg3 {[%clk 0:00:10.4]} 70. Kg1 {[%clk
0:00:15.1]} 70... Kg4 {[%clk 0:00:10.7]} 71. Kf2 {[%clk 0:00:15.6]} 71... Kf4
{[%clk 0:00:11.3]} 72. Kf1 {[%clk 0:00:15.9]} 72... Ke3 {[%clk 0:00:11.8]} 73.
Ke1 {[%clk 0:00:16.4]} 73... f2+ {[%clk 0:00:12.3]} 74. Kf1 {[%clk 0:00:17]}
74... Kf3 {[%clk 0:00:13.2]} 1/2-1/2

[Event "Early-Titled-Tuesday-Blitz-February-13-2024"]
[Site "Chess.com"]
[Date "2024.02.13"]
[Round "4"]
[White "chess123456s"]
[Black "klimkoj"]
[Result "1-0"]
[WhiteElo "2627"]
[BlackElo "2918"]
[TimeControl "180+1"]
[EndTime "8:44:17 PST"]
[Termination "chess123456s won on time"]

1. e4 {[%clk 0:03:00.9]} 1... c6 {[%clk 0:02:57.7]} 2. d4 {[%clk 0:03:00]} 2...
d5 {[%clk 0:02:58.3]} 3. e5 {[%clk 0:03:00.4]} 3... Bf5 {[%clk 0:02:58.1]} 4. h4
{[%clk 0:03:00.3]} 4... h5 {[%clk 0:02:58]} 5. Bd3 {[%clk 0:03:00.5]} 5... Bxd3
{[%clk 0:02:57.7]} 6. Qxd3 {[%clk 0:03:01.4]} 6... e6 {[%clk 0:02:58.3]} 7. Bg5
{[%clk 0:03:00.1]} 7... Qa5+ {[%clk 0:02:57.1]} 8. Nd2 {[%clk 0:02:59.9]} 8...
Qa6 {[%clk 0:02:57.2]} 9. c4 {[%clk 0:02:59.7]} 9... Nd7 {[%clk 0:02:56.8]} 10.
Qc2 {[%clk 0:02:49.7]} 10... Ne7 {[%clk 0:02:54.6]} 11. Ngf3 {[%clk 0:02:47.1]}
11... Nf5 {[%clk 0:02:54.4]} 12. O-O {[%clk 0:02:46.9]} 12... Be7 {[%clk
0:02:43.7]} 13. Bxe7 {[%clk 0:02:46]} 13... Nxe7 {[%clk 0:02:43.6]} 14. b3
{[%clk 0:02:35.5]} 14... Nf5 {[%clk 0:02:42.6]} 15. g3 {[%clk 0:02:30.2]} 15...
Qa3 {[%clk 0:02:21.1]} 16. c5 {[%clk 0:02:20.8]} 16... O-O {[%clk 0:02:11.8]}
17. Qd1 {[%clk 0:02:06.7]} 17... f6 {[%clk 0:01:54.7]} 18. exf6 {[%clk
0:02:01.2]} 18... gxf6 {[%clk 0:01:54.7]} 19. Re1 {[%clk 0:02:00.5]} 19... Rae8
{[%clk 0:01:53.8]} 20. Qc2 {[%clk 0:01:53.8]} 20... Ng7 {[%clk 0:01:22.8]} 21.
Re3 {[%clk 0:01:35.3]} 21... e5 {[%clk 0:01:18]} 22. b4 {[%clk 0:01:30.3]} 22...
Qa6 {[%clk 0:00:57]} 23. dxe5 {[%clk 0:01:25]} 23... fxe5 {[%clk 0:00:52.8]} 24.
Ng5 {[%clk 0:01:24.8]} 24... e4 {[%clk 0:00:48.3]} 25. Rae1 {[%clk 0:01:17.3]}
25... Nf6 {[%clk 0:00:46.6]} 26. Nb3 {[%clk 0:00:57.8]} 26... Ng4 {[%clk
0:00:32.6]} 27. R3e2 {[%clk 0:00:55]} 27... Ne5 {[%clk 0:00:31.4]} 28. Nd4
{[%clk 0:00:49]} 28... Qd3 {[%clk 0:00:30.2]} 29. Qxd3 {[%clk 0:00:42.5]} 29...
Nxd3 {[%clk 0:00:31.1]} 30. Rb1 {[%clk 0:00:42.6]} 30... a6 {[%clk 0:00:25.4]}
31. a4 {[%clk 0:00:42]} 31... Nf5 {[%clk 0:00:24.8]} 32. Nxf5 {[%clk 0:00:29.5]}
32... Rxf5 {[%clk 0:00:25.7]} 33. f4 {[%clk 0:00:12.7]} 33... e3 {[%clk
0:00:21.1]} 34. Rb3 {[%clk 0:00:10.5]} 34... Nxf4 {[%clk 0:00:16.5]} 35. gxf4
{[%clk 0:00:09.7]} 35... Rxf4 {[%clk 0:00:17.4]} 36. Rbxe3 {[%clk 0:00:09.9]}
36... Rxe3 {[%clk 0:00:18]} 37. Rxe3 {[%clk 0:00:10.1]} 37... Rxb4 {[%clk
0:00:17.9]} 38. Re7 {[%clk 0:00:08.2]} 38... Rxh4 {[%clk 0:00:12.6]} 39. Ne6
{[%clk 0:00:07.6]} 39... Re4 {[%clk 0:00:13]} 40. Rg7+ {[%clk 0:00:07.2]} 40...
Kh8 {[%clk 0:00:08.8]} 41. Rg6 {[%clk 0:00:08]} 41... Rxa4 {[%clk 0:00:08.6]}
42. Rh6+ {[%clk 0:00:05.5]} 42... Kg8 {[%clk 0:00:06.4]} 43. Rxh5 {[%clk
0:00:06.4]} 43... Rb4 {[%clk 0:00:06.1]} 44. Kf2 {[%clk 0:00:05.5]} 44... Kf7
{[%clk 0:00:06.2]} 45. Ng5+ {[%clk 0:00:04.5]} 45... Kf6 {[%clk 0:00:06.3]} 46.
Nf3 {[%clk 0:00:04.7]} 46... a5 {[%clk 0:00:06.6]} 47. Ke3 {[%clk 0:00:04.1]}
47... a4 {[%clk 0:00:07]} 48. Nd4 {[%clk 0:00:04.5]} 48... a3 {[%clk 0:00:06.6]}
49. Rh1 {[%clk 0:00:05.1]} 49... a2 {[%clk 0:00:06.5]} 50. Ra1 {[%clk
0:00:05.8]} 50... Rb2 {[%clk 0:00:06.3]} 51. Kd3 {[%clk 0:00:06.2]} 51... Ke5
{[%clk 0:00:06.7]} 52. Kc3 {[%clk 0:00:06.8]} 52... Rg2 {[%clk 0:00:06.4]} 53.
Nc2 {[%clk 0:00:07.3]} 53... Ke4 {[%clk 0:00:04.7]} 54. Rxa2 {[%clk 0:00:06.8]}
54... d4+ {[%clk 0:00:05.3]} 55. Kc4 {[%clk 0:00:06.4]} 55... d3 {[%clk
0:00:05.3]} 56. Nb4 {[%clk 0:00:04.5]} 56... Rg1 {[%clk 0:00:05.8]} 57. Nxd3
{[%clk 0:00:03.5]} 1-0

[Event "Early-Titled-Tuesday-Blitz-February-13-2024"]
[Site "Chess.com"]
[Date "2024.02.13"]
[Round "4"]
[White "ilqar_74"]
[Black "Dinosaurio_1975"]
[Result "0-1"]
[WhiteElo "2805"]
[BlackElo "2587"]
[TimeControl "180+1"]
[EndTime "8:44:31 PST"]
[Termination "Dinosaurio_1975 won by resignation"]

1. e4 {[%clk 0:03:00.9]} 1... e6 {[%clk 0:02:57.5]} 2. d4 {[%clk 0:03:00.1]}
2... d5 {[%clk 0:02:58.1]} 3. Nc3 {[%clk 0:03:00.9]} 3... Bb4 {[%clk 0:02:58]}
4. e5 {[%clk 0:03:00]} 4... c5 {[%clk 0:02:58.1]} 5. a3 {[%clk 0:02:59.5]} 5...
Bxc3+ {[%clk 0:02:58.8]} 6. bxc3 {[%clk 0:03:00.4]} 6... Qc7 {[%clk 0:02:58.4]}
7. Nf3 {[%clk 0:02:57.9]} 7... Ne7 {[%clk 0:02:55.3]} 8. Bd3 {[%clk 0:02:56.6]}
8... b6 {[%clk 0:02:52.6]} 9. a4 {[%clk 0:02:55.3]} 9... Ba6 {[%clk 0:02:51.7]}
10. O-O {[%clk 0:02:52.3]} 10... Bxd3 {[%clk 0:02:50.2]} 11. Qxd3 {[%clk
0:02:53.2]} 11... h6 {[%clk 0:02:49.9]} 12. a5 {[%clk 0:02:51.4]} 12... O-O
{[%clk 0:02:28.6]} 13. axb6 {[%clk 0:02:50.7]} 13... Qxb6 {[%clk 0:02:29.5]} 14.
Ba3 {[%clk 0:02:50.4]} 14... Nd7 {[%clk 0:02:29]} 15. Rfb1 {[%clk 0:02:46.7]}
15... Qc7 {[%clk 0:02:25.9]} 16. g4 {[%clk 0:02:39.4]} 16... Rfb8 {[%clk
0:02:13.2]} 17. Rb5 {[%clk 0:02:33.5]} 17... Rxb5 {[%clk 0:02:08.8]} 18. Qxb5
{[%clk 0:02:32.9]} 18... Rb8 {[%clk 0:02:09.7]} 19. Qa4 {[%clk 0:02:30.8]} 19...
Ng6 {[%clk 0:02:03.2]} 20. Bc1 {[%clk 0:02:16.2]} 20... cxd4 {[%clk 0:01:57.7]}
21. cxd4 {[%clk 0:02:16.1]} 21... Qc3 {[%clk 0:01:45.3]} 22. Ra3 {[%clk
0:02:12.7]} 22... Qc8 {[%clk 0:01:22.3]} 23. Be3 {[%clk 0:02:06.8]} 23... Rb1+
{[%clk 0:01:14.8]} 24. Kg2 {[%clk 0:02:03.8]} 24... Nb6 {[%clk 0:01:04.1]} 25.
Qxa7 {[%clk 0:01:19.2]} 25... Nc4 {[%clk 0:01:02.6]} 26. Qa6 {[%clk 0:00:12.7]}
26... Nxe3+ {[%clk 0:01:01]} 27. fxe3 {[%clk 0:00:13.4]} 27... Qxc2+ {[%clk
0:01:00.5]} 28. Kg3 {[%clk 0:00:13.6]} 28... Rb2 {[%clk 0:00:53.1]} 29. Qf1
{[%clk 0:00:11.6]} 29... Qe4 {[%clk 0:00:34.2]} 30. Ra8+ {[%clk 0:00:11.1]}
30... Kh7 {[%clk 0:00:34.4]} 31. Ra3 {[%clk 0:00:04.3]} 31... Rb1 {[%clk
0:00:26.8]} 32. Qh3 {[%clk 0:00:03.8]} 32... Kg8 {[%clk 0:00:16]} 33. Qg2 {[%clk
0:00:04.4]} 33... Rc1 {[%clk 0:00:14.1]} 34. Rb3 {[%clk 0:00:03.6]} 34... Rc2
{[%clk 0:00:13.2]} 35. Qf1 {[%clk 0:00:03.3]} 35... Rc8 {[%clk 0:00:12.8]} 36.
Qa6 {[%clk 0:00:02.7]} 36... Qc2 {[%clk 0:00:12.2]} 37. Rb2 {[%clk 0:00:01.6]}
37... Qc1 {[%clk 0:00:11.5]} 38. Qb7 {[%clk 0:00:01.2]} 38... Qc4 {[%clk
0:00:06.9]} 39. Rb4 {[%clk 0:00:01.1]} 39... Qc3 {[%clk 0:00:06.6]} 40. Rb6
{[%clk 0:00:02]} 40... Re8 {[%clk 0:00:05.3]} 41. Qd7 {[%clk 0:00:02.1]} 41...
Rf8 {[%clk 0:00:04.6]} 42. Qb5 {[%clk 0:00:02.4]} 42... Qxe3 {[%clk 0:00:04.5]}
43. Qb3 {[%clk 0:00:03]} 43... Qf4+ {[%clk 0:00:04.7]} 44. Kf2 {[%clk
0:00:03.7]} 44... Qxg4 {[%clk 0:00:04.9]} 45. Rb8 {[%clk 0:00:04.4]} 45... Rxb8
{[%clk 0:00:03.7]} 46. Qxb8+ {[%clk 0:00:05.3]} 46... Kh7 {[%clk 0:00:04.1]} 47.
Qe8 {[%clk 0:00:05.9]} 47... Qf4 {[%clk 0:00:02.9]} 48. Kg2 {[%clk 0:00:06.5]}
48... Nh4+ {[%clk 0:00:03.4]} 49. Nxh4 {[%clk 0:00:05.4]} 49... Qg4+ {[%clk
0:00:04]} 50. Kh1 {[%clk 0:00:05.1]} 50... Qxh4 {[%clk 0:00:04.9]} 51. Qxf7
{[%clk 0:00:05.6]} 51... Qe4+ {[%clk 0:00:05.5]} 52. Kg1 {[%clk 0:00:05.1]}
52... Qxd4+ {[%clk 0:00:06]} 53. Kg2 {[%clk 0:00:06]} 53... Qe4+ {[%clk
0:00:06.3]} 54. Kf2 {[%clk 0:00:05.3]} 54... Qxe5 {[%clk 0:00:07.2]} 55. Qe8
{[%clk 0:00:05.3]} 55... Qf5+ {[%clk 0:00:07.1]} 56. Ke2 {[%clk 0:00:05.9]}
56... d4 {[%clk 0:00:07.7]} 57. h4 {[%clk 0:00:01.3]} 57... d3+ {[%clk
0:00:08.6]} 58. Kd2 {[%clk 0:00:02]} 58... e5 {[%clk 0:00:09]} 59. h5 {[%clk
0:00:01.5]} 59... e4 {[%clk 0:00:08.9]} 60. Ke3 {[%clk 0:00:02.2]} 60... Qf3+
{[%clk 0:00:08.7]} 61. Kd4 {[%clk 0:00:02.2]} 61... Qf5 {[%clk 0:00:07.8]} 62.
Ke3 {[%clk 0:00:01.9]} 62... Qf3+ {[%clk 0:00:03.2]} 63. Kd4 {[%clk 0:00:02.3]}
63... Qf6+ {[%clk 0:00:03.9]} 64. Kxe4 {[%clk 0:00:01.8]} 64... d2 {[%clk
0:00:04.6]} 65. Qd7 {[%clk 0:00:02.5]} 65... Qh4+ {[%clk 0:00:04]} 66. Ke3
{[%clk 0:00:01.8]} 66... Qe1+ {[%clk 0:00:04.1]} 67. Kf4 {[%clk 0:00:01.7]}
67... Qf2+ {[%clk 0:00:04.1]} 68. Ke4 {[%clk 0:00:01.5]} 68... Qe2+ {[%clk
0:00:04.6]} 69. Kf4 {[%clk 0:00:02.2]} 69... d1=Q {[%clk 0:00:02.8]} 70. Qf5+
{[%clk 0:00:02.9]} 70... Kg8 {[%clk 0:00:03.3]} 71. Qc8+ {[%clk 0:00:03.8]}
71... Kf7 {[%clk 0:00:03.2]} 72. Qc7+ {[%clk 0:00:04.4]} 72... Qe7 {[%clk
0:00:03.7]} 0-1